Workbook

Sheet Sheet1
A1: Synthesize y=sinx | I1: =PI()/180 -> 0.01745329252
A2: 0<x<90 | L2: A.C. RAO,;” Optimum Design of Four-Bar Function Generators with Minimum Variance Criterion”,
L3: JOURNAL OF OPTIMIZATION THEORY AND APPLICATIONS: Vol. 29, No. 1, SEPTEMBER 1979
B4: qin | C4: 127.5691248 | D4: =C4*D_R -> 2.226501251 | L4: F. Y. CHEN, Ohio VEN-LIN CHAN.; “Dimensional Synthesis of Mechanisms for Function Generation Using Marquardt's Compromise”,
B5: fin | C5: 13.25157079 | D5: =C5*D_R -> 0.2312835414 | L5: Journal of Engineering for Industry FEBRUARY 1974 / 131-137
L7: assuming initial crank angles Least squares formulation with 3 design variables is performed.
L8: In the resulting error curve max error is tried to be minized uzing the initial crank angles as the two design variables.
D11: q | E11: f | G11: q | H11: f | J11: cosf | K11: cosq | L11: cos(f-q) | M11: cos2f | N11: cos2q | O11: cosfcosq | P11: cosq*cos(f-q) | Q11: cosf*cos(f-q)
D12: =B12*$D$7 -> 0 | E12: 0 | G12: =D12*D_R+$D$4 -> 2.226501251 | H12: =E12*D_R+$D$5 -> 0.2312835414 | J12: =COS(H12) -> 0.9733729745 | K12: =COS(G12) -> -0.6097181306 | L12: =COS(H12-G12) -> -0.41179357 | M12: =J12^2 -> 0.9474549474 | N12: =K12^2 -> 0.3717561987 | O12: =J12*K12 -> -0.5934831503 | P12: =L12*K12 -> 0.2510780057 | Q12: =J12*L12 -> -0.4008287321
D13: 40 | E13: 28 | G13: 2.924632952 | H13: 0.7199757319 | J13: =COS(H13) -> 0.7518217309 | K13: =COS(G13) -> -0.9765564211 | L13: =COS(H13-G13) -> -0.5922600669 | M13: =J13^2 -> 0.5652359151 | N13: =K13^2 -> 0.9536624436 | O13: =J13*K13 -> -0.7341963389 | P13: =L13*K13 -> 0.5783753713 | Q13: =J13*L13 -> -0.4452739887
D14: 80 | E14: 61.6 | G14: 3.622764653 | H14: 1.306406361 | J14: 0.2613204804 | K14: -0.886453109 | L14: -0.6783847972 | M14: 0.06828839347 | N14: 0.7857991145 | O14: -0.2316483523 | P14: 0.6013563125 | Q14: -0.1772758411
D15: 120 | E15: 96 | G15: 4.320896353 | H15: 1.906799623 | J15: -0.3297165278 | K15: -0.3815685354 | L15: -0.7468419569 | M15: 0.1087129887 | N15: 0.1455945472 | O15: 0.1258094526 | P15: 0.2849713916 | Q15: 0.2462461368
D16: 160 | E16: 129 | G16: 5.019028054 | H16: 2.482758276 | J16: -0.7907063577 | K16: 0.3018561966 | L16: -0.8223184152 | M16: 0.6252165441 | N16: 0.09111716345 | O16: -0.2386796138 | P16: -0.2482219092 | Q16: 0.6502123989
D17: 200 | E17: 170 | G17: 5.717159755 | H17: 3.19834327 | J17: -0.9983901159 | K17: 0.8440390595 | L17: -0.8122622709 | M17: 0.9967828236 | N17: 0.7124019339 | O17: -0.8426802544 | P17: -0.6855810832 | Q17: 0.8109546228
D18: 240 | E18: 225 | G18: 6.415291456 | H18: 4.158274358 | J18: -0.5261906106 | K18: 0.9912866659 | L18: -0.6336179278 | M18: 0.2768765587 | N18: 0.9826492541 | O18: -0.5216057361 | P18: -0.6280970032 | Q18: 0.3334038044
D19: 280 | E19: 275 | G19: 7.113423157 | H19: 5.030938984 | J19: 0.3131898428 | K19: 0.6747002245 | L19: -0.4896496086 | M19: 0.09808787766 | N19: 0.4552203929 | O19: 0.2113092573 | P19: -0.3303667008 | Q19: -0.153353284
D20: 320 | E20: 322 | G20: 7.811554857 | H20: =E20*D_R+$D$5 -> 5.851243733 | J20: 0.9081546512 | K20: 0.04241404954 | L20: -0.3797396024 | M20: 0.8247448706 | N20: 0.001798951598 | O20: 0.03851851637 | P20: -0.01610629431 | Q20: -0.3448622862
J24: =SUM(J12:J20) -> 0.5628560678 | K24: 4.649058916e-16 | L24: -5.566868216 | M24: 4.511400919 | N24: 4.5 | O24: -2.78665622 | P24: -0.1925919095 | Q24: 0.519222831
C26: =M24 -> 4.511400919 | D26: =-O24 -> 2.78665622 | E26: =J24 -> 0.5628560678 | G26: =Q24 -> 0.519222831 | M26: =M27/D_R -> 297.3337801
C27: =O24 -> -2.78665622 | D27: =-N24 -> -4.5 | E27: =K24 -> 4.649058916e-16 | G27: =P24 -> -0.1925919095 | K27: 79 | L27: =K27*D_R -> 1.378810109 | M27: =FourBar(ABS(F31),F32,ABS(F33),F30,-1,L27+PI()) -> 5.189453441
C28: =J24 -> 0.5628560678 | D28: =-K24 -> -4.649058916e-16 | E28: 9 | G28: =L24 -> -5.566868216
B30: K1 | C30: =MMULT(MINVERSE(C26:E28),G26:G28) -> 0.2719856416 | E30: a1 | F30: 1
B31: K2 | C31: -0.1256307934 | E31: a2 | F31: =F30/C30 -> 3.676664673 | G31: =-F31 -> -3.676664673
B32: K3 | C32: -0.6355507761 | E32: a3 | F32: =SQRT(F30^2+F31^2+F33^2-2*C32*F31*F33) -> 6.377867675
E33: a4 | F33: =F30/C31 -> -7.959831927 | G33: =-F33 -> 7.959831927
I34: =MIN(J37:J45) -> -2.205979384
F35: Generated by Four-Bar | I35: =MAX(J37:J45) -> 2.205979387 | J35: =MAX(-I34,I35) -> 2.205979387
F36: f | J36: e
B37: =C37-$C$4 -> 0 | C37: =D37/D_R -> 127.5691248 | D37: =G12 -> 2.226501251 | E37: =FourBar($F$31,$F$32,$G$33,$F$30,-1,D37) -> 3.335812595 | F37: =E37/D_R -> 191.1279829 | G37: =F37-180 -> 11.12798294 | H37: =G37-$C$5 -> -2.123587854 | J37: =H37-E12 -> -2.123587854
B38: =C38-$C$4 -> 40 | C38: 167.5691248 | D38: =G13 -> 2.924632952 | E38: =FourBar($F$31,$F$32,$G$33,$F$30,-1,D38) -> 3.900069989 | F38: 223.4575502 | G38: =F38-180 -> 43.45755018 | H38: =G38-$C$5 -> 30.20597939 | J38: =H38-E13 -> 2.205979387
B39: 80 | C39: 207.5691248 | D39: 3.622764653 | E39: 4.450547245 | F39: 254.9975737 | G39: 74.99757367 | H39: 61.74600288 | J39: 0.14600288
B40: 120 | C40: 247.5691248 | D40: 4.320896353 | E40: 5.019533849 | F40: 287.5981047 | G40: 107.5981047 | H40: 94.34653388 | J40: -1.653466124
B41: 160 | C41: 287.5691248 | D41: 5.019028054 | E41: 5.637372837 | F41: 322.9976711 | G41: 142.9976711 | H41: 129.7461003 | J41: 0.7461003072
B42: 200 | C42: 327.5691248 | D42: 5.717159755 | E42: 6.359480092 | F42: 364.3713692 | G42: 184.3713692 | H42: 171.1197984 | J42: 1.11979839
B43: 240 | C43: 367.5691248 | D43: 6.415291456 | E43: 0.9781801013 | F43: 56.04559141 | G43: =F43+180 -> 236.0455914 | H43: 222.7940206 | J43: -2.205979384
B44: 280 | C44: 407.5691248 | D44: 7.113423157 | E44: 1.927847439 | F44: 110.4575218 | G44: =F44+180 -> 290.4575218 | H44: 277.205951 | J44: 2.205951021
B45: 320 | C45: 447.5691248 | D45: 7.811554857 | E45: 2.705357077 | F45: 155.0055426 | G45: =F45+180 -> 335.0055426 | H45: 321.7539718 | J45: -0.2460281802
P47: Chen ve Rao değerlerine göre
I48: A' | J48: =COS(D49-$D$37) -> 0.7660444431 | K48: =SIN(D49-$D$37) -> 0.6427876097 | P48: Netice çok iyi
B49: =MOD(B51*B52,360) -> 40 | C49: =B49+C4 -> 167.5691248 | D49: =C49*D_R -> 2.924632952 | E49: =FourBar($F$31,$F$32,$G$33,$F$30,-1,D49) -> 3.900069989 | F49: =E49/D_R -> 223.4575502 | I49: A0 | J49: 0 | K49: 0
I50: A | J50: =F31*COS(D49) -> -3.590470495 | K50: =F31*SIN(D49) -> 0.7914447197
B51: 5 | I51: B | J51: =G33*COS(F49*D_R) -> -5.777915962 | K51: =G33*SIN(F49*D_R) -> -5.474907437
B52: 8 | I52: B0 | J52: 1 | K52: 0
I53: B' | J53: =COS((F49-180)*D_R)+J52 -> 1.725884166 | K53: =SIN((F49-180)*D_R) -> 0.6878169648
